[Event "*** SCC Grand Prix: Titled Tuesday Blitz"]
[Site "Chess.com"]
[Date "2020.07.21"]
[Round "5"]
[White "olksuna"]
[Black "sergiochess83"]
[Result "0-1"]
[WhiteElo "2626"]
[BlackElo "2842"]
[TimeControl "180+1"]
[EndTime "10:56:43 PDT"]
[Termination "sergiochess83 won by resignation"]

1. Nf3 {[%clk 0:03:00.9]} 1... d5 {[%clk 0:02:59.2]} 2. g3 {[%clk 0:03:01.3]}
2... c6 {[%clk 0:02:57.9]} 3. Bg2 {[%clk 0:03:01.6]} 3... Bg4 {[%clk 0:02:58.3]}
4. O-O {[%clk 0:03:01.5]} 4... e6 {[%clk 0:02:58.8]} 5. h3 {[%clk 0:03:00.6]}
5... Bh5 {[%clk 0:02:58.5]} 6. d4 {[%clk 0:03:00.7]} 6... Nf6 {[%clk 0:02:58.6]}
7. c4 {[%clk 0:03:00.4]} 7... Be7 {[%clk 0:02:59.2]} 8. Nc3 {[%clk 0:02:53.3]}
8... Nbd7 {[%clk 0:02:58.9]} 9. Ne5 {[%clk 0:02:48.5]} 9... O-O {[%clk 0:02:56]}
10. Qb3 {[%clk 0:02:45.8]} 10... Nxe5 {[%clk 0:02:10.2]} 11. dxe5 {[%clk
0:02:46.7]} 11... Nd7 {[%clk 0:02:10.6]} 12. cxd5 {[%clk 0:02:29.4]} 12... cxd5
{[%clk 0:02:08.6]} 13. Qxb7 {[%clk 0:02:28.5]} 13... Nxe5 {[%clk 0:02:03.3]} 14.
Bf4 {[%clk 0:02:25.1]} 14... Nc4 {[%clk 0:01:53.8]} 15. b3 {[%clk 0:02:14.7]}
15... Nd6 {[%clk 0:01:36.2]} 16. Qa6 {[%clk 0:02:07.7]} 16... Qc8 {[%clk
0:01:31.4]} 17. Qd3 {[%clk 0:01:56.1]} 17... Bg6 {[%clk 0:01:23.7]} 18. Qd2
{[%clk 0:01:38.5]} 18... Qa6 {[%clk 0:01:23.6]} 19. Rac1 {[%clk 0:01:13.8]}
19... Rac8 {[%clk 0:01:22.9]} 20. Rfe1 {[%clk 0:00:47.1]} 20... Rfd8 {[%clk
0:01:21.3]} 21. Na4 {[%clk 0:00:44.9]} 21... Ne4 {[%clk 0:01:17.1]} 22. Qb2
{[%clk 0:00:43.9]} 22... Bf6 {[%clk 0:01:09.9]} 23. Rxc8 {[%clk 0:00:43.6]}
23... Rxc8 {[%clk 0:01:06.4]} 24. Be5 {[%clk 0:00:43.9]} 24... Bxe5 {[%clk
0:00:45.1]} 25. Qxe5 {[%clk 0:00:44.8]} 25... h6 {[%clk 0:00:45.7]} 26. h4
{[%clk 0:00:35.2]} 26... Qd6 {[%clk 0:00:24.8]} 27. Qd4 {[%clk 0:00:32.8]} 27...
Rc7 {[%clk 0:00:21.1]} 28. Bf3 {[%clk 0:00:32.3]} 28... e5 {[%clk 0:00:18.5]}
29. Qb2 {[%clk 0:00:28.3]} 29... d4 {[%clk 0:00:17.5]} 30. h5 {[%clk 0:00:27.3]}
30... Bf5 {[%clk 0:00:16.1]} 31. Rc1 {[%clk 0:00:25.5]} 31... Ng5 {[%clk
0:00:12.5]} 32. Bg2 {[%clk 0:00:22.9]} 32... Rxc1+ {[%clk 0:00:10.2]} 33. Qxc1
{[%clk 0:00:23.8]} 33... e4 {[%clk 0:00:10.8]} 34. Qc5 {[%clk 0:00:22.7]} 34...
Qd7 {[%clk 0:00:09.9]} 35. Qc4 {[%clk 0:00:15.5]} 35... d3 {[%clk 0:00:08.3]}
36. exd3 {[%clk 0:00:14.5]} 36... exd3 {[%clk 0:00:08.4]} 37. Nc3 {[%clk
0:00:12.1]} 37... d2 {[%clk 0:00:08.5]} 38. Nd1 {[%clk 0:00:12.4]} 38... Bg4
{[%clk 0:00:08.1]} 39. Qc2 {[%clk 0:00:09.4]} 39... Bxh5 {[%clk 0:00:06.5]} 40.
f4 {[%clk 0:00:05.5]} 40... Nf3+ {[%clk 0:00:06]} 41. Bxf3 {[%clk 0:00:04]}
41... Bxf3 {[%clk 0:00:05.3]} 42. Kf2 {[%clk 0:00:04.1]} 42... Bg4 {[%clk
0:00:04.6]} 43. Ke3 {[%clk 0:00:04.5]} 43... Qe6+ {[%clk 0:00:02.9]} 44. Kxd2
{[%clk 0:00:04.4]} 44... Qe2+ {[%clk 0:00:03.1]} 45. Kc3 {[%clk 0:00:04.5]}
45... Qe1+ {[%clk 0:00:04]} 46. Qd2 {[%clk 0:00:03.9]} 46... Qxd1 {[%clk
0:00:04.4]} 47. Qe3 {[%clk 0:00:02.3]} 47... Qa1+ {[%clk 0:00:03.7]} 48. Kb4
{[%clk 0:00:02.2]} 48... Qxa2 {[%clk 0:00:03.7]} 49. Qe8+ {[%clk 0:00:03.1]}
49... Kh7 {[%clk 0:00:03.5]} 50. Qxf7 {[%clk 0:00:04]} 50... Qd2+ {[%clk
0:00:03.5]} 51. Ka3 {[%clk 0:00:04.1]} 51... Qd3 {[%clk 0:00:03.8]} 52. Qe7
{[%clk 0:00:03]} 52... Qxg3 {[%clk 0:00:03.4]} 53. Qxa7 {[%clk 0:00:03.8]} 53...
Bf5 {[%clk 0:00:03]} 54. Qc5 {[%clk 0:00:03.9]} 54... Qd3 {[%clk 0:00:03.9]} 55.
Ka4 {[%clk 0:00:03]} 55... Bd7+ {[%clk 0:00:03.6]} 56. Ka5 {[%clk 0:00:03]}
56... Qxb3 {[%clk 0:00:03.2]} 57. f5 {[%clk 0:00:03.6]} 57... Qa2+ {[%clk
0:00:02.7]} 58. Kb6 {[%clk 0:00:03.5]} 58... Qd2 {[%clk 0:00:03.1]} 59. Kc7
{[%clk 0:00:04.4]} 59... Be8 {[%clk 0:00:01.8]} 60. f6 {[%clk 0:00:04.4]} 60...
Qd7+ {[%clk 0:00:02.7]} 61. Kb8 {[%clk 0:00:04.4]} 61... gxf6 {[%clk 0:00:03.2]}
62. Qf8 {[%clk 0:00:03.8]} 62... Qg7 {[%clk 0:00:04.1]} 63. Qxe8 {[%clk
0:00:03.8]} 63... Qg8 {[%clk 0:00:04.6]} 64. Ka7 {[%clk 0:00:02]} 64... Qxe8
{[%clk 0:00:04.5]} 0-1

[Event "*** SCC Grand Prix: Titled Tuesday Blitz"]
[Site "Chess.com"]
[Date "2020.07.21"]
[Round "5"]
[White "AquivaRubinstein"]
[Black "ItsCheckM8Mate"]
[Result "1-0"]
[WhiteElo "2468"]
[BlackElo "2294"]
[TimeControl "180+1"]
[EndTime "10:56:48 PDT"]
[Termination "AquivaRubinstein won on time"]

1. d4 {[%clk 0:03:00.9]} 1... Nf6 {[%clk 0:02:57.8]} 2. c4 {[%clk 0:03:00.9]}
2... c5 {[%clk 0:02:57.1]} 3. d5 {[%clk 0:03:00.6]} 3... b5 {[%clk 0:02:55.2]}
4. cxb5 {[%clk 0:02:59.8]} 4... a6 {[%clk 0:02:49.8]} 5. f3 {[%clk 0:02:59.1]}
5... e6 {[%clk 0:02:35.1]} 6. e4 {[%clk 0:02:57.2]} 6... axb5 {[%clk 0:02:15.6]}
7. Bxb5 {[%clk 0:02:50.9]} 7... Bb7 {[%clk 0:02:13.1]} 8. Nc3 {[%clk 0:02:45.9]}
8... exd5 {[%clk 0:01:46.4]} 9. exd5 {[%clk 0:02:30.7]} 9... Bd6 {[%clk
0:01:46.1]} 10. Nge2 {[%clk 0:02:25.5]} 10... Qb6 {[%clk 0:01:37.4]} 11. O-O
{[%clk 0:02:03.6]} 11... O-O {[%clk 0:01:10.9]} 12. a4 {[%clk 0:01:57.9]} 12...
Na6 {[%clk 0:01:09.2]} 13. a5 {[%clk 0:01:41.8]} 13... Qd8 {[%clk 0:00:54.5]}
14. Bg5 {[%clk 0:01:36]} 14... h6 {[%clk 0:00:51.2]} 15. Bh4 {[%clk 0:01:32.9]}
15... Nc7 {[%clk 0:00:49.6]} 16. Bc4 {[%clk 0:01:30]} 16... Ba6 {[%clk
0:00:46.6]} 17. b3 {[%clk 0:01:25.7]} 17... Qe7 {[%clk 0:00:43.7]} 18. Ne4
{[%clk 0:01:17.9]} 18... g5 {[%clk 0:00:28.8]} 19. Bf2 {[%clk 0:01:07.2]} 19...
Nxe4 {[%clk 0:00:25.8]} 20. fxe4 {[%clk 0:01:07.2]} 20... Qxe4 {[%clk
0:00:25.4]} 21. Ng3 {[%clk 0:01:06.3]} 21... Qg6 {[%clk 0:00:23.1]} 22. Qf3
{[%clk 0:00:27.1]} 22... f5 {[%clk 0:00:17.9]} 23. Rae1 {[%clk 0:00:26.5]} 23...
Bxc4 {[%clk 0:00:14.8]} 24. bxc4 {[%clk 0:00:25.2]} 24... Rxa5 {[%clk
0:00:14.6]} 25. Qc3 {[%clk 0:00:21.9]} 25... Ra2 {[%clk 0:00:12.1]} 26. Qb3
{[%clk 0:00:17.5]} 26... Raa8 {[%clk 0:00:10.2]} 27. Re2 {[%clk 0:00:12.8]}
27... Rab8 {[%clk 0:00:09.6]} 28. Qc2 {[%clk 0:00:11]} 28... Na6 {[%clk
0:00:08.4]} 29. Rfe1 {[%clk 0:00:10.4]} 29... Nb4 {[%clk 0:00:07.5]} 30. Qc3
{[%clk 0:00:10.7]} 30... Kh7 {[%clk 0:00:03.7]} 31. Nh1 {[%clk 0:00:09.4]} 31...
Kg8 {[%clk 0:00:03.6]} 32. Bg3 {[%clk 0:00:09.4]} 32... f4 {[%clk 0:00:03.1]}
33. Bf2 {[%clk 0:00:09.2]} 33... Rbe8 {[%clk 0:00:02.3]} 34. Qd2 {[%clk
0:00:06.2]} 34... Rxe2 {[%clk 0:00:02.1]} 35. Rxe2 {[%clk 0:00:07.1]} 35... Re8
{[%clk 0:00:02]} 36. Qe1 {[%clk 0:00:07.7]} 36... Rxe2 {[%clk 0:00:01.9]} 37.
Qxe2 {[%clk 0:00:08.6]} 37... Qb1+ {[%clk 0:00:02.2]} 38. Be1 {[%clk 0:00:08]}
38... Nc2 {[%clk 0:00:02]} 39. Kf1 {[%clk 0:00:07.8]} 39... Nxe1 {[%clk
0:00:01.9]} 40. Qxe1 {[%clk 0:00:08.7]} 40... Qd3+ {[%clk 0:00:02.2]} 41. Kg1
{[%clk 0:00:07.9]} 41... Qxc4 {[%clk 0:00:02.1]} 42. Nf2 {[%clk 0:00:07.8]}
42... Qxd5 {[%clk 0:00:02]} 43. Qe8+ {[%clk 0:00:06.7]} 43... Bf8 {[%clk
0:00:02.9]} 44. h3 {[%clk 0:00:06.5]} 44... c4 {[%clk 0:00:03.3]} 45. Qg6+
{[%clk 0:00:06.5]} 45... Kh8 {[%clk 0:00:03.3]} 46. Ng4 {[%clk 0:00:05.9]} 46...
Qe6 {[%clk 0:00:03.8]} 47. Qc2 {[%clk 0:00:04.5]} 47... Qe1+ {[%clk 0:00:04.1]}
48. Kh2 {[%clk 0:00:02.7]} 48... Qg3+ {[%clk 0:00:04.4]} 49. Kg1 {[%clk
0:00:03]} 49... Qe1+ {[%clk 0:00:04.6]} 50. Kh2 {[%clk 0:00:02.7]} 50... Qe6
{[%clk 0:00:04.8]} 51. Qc3+ {[%clk 0:00:01.6]} 51... Bg7 {[%clk 0:00:04.8]} 52.
Qc2 {[%clk 0:00:02.5]} 52... d5 {[%clk 0:00:04.6]} 53. Nf2 {[%clk 0:00:02.2]}
53... d4 {[%clk 0:00:04.1]} 54. Ng4 {[%clk 0:00:02.4]} 54... d3 {[%clk
0:00:03.9]} 55. Qa4 {[%clk 0:00:02.9]} 55... Qe1 {[%clk 0:00:02.8]} 56. Qa8+
{[%clk 0:00:01]} 56... Kh7 {[%clk 0:00:01.8]} 57. Qd5 {[%clk 0:00:01.9]} 1-0

[Event "*** SCC Grand Prix: Titled Tuesday Blitz"]
[Site "Chess.com"]
[Date "2020.07.21"]
[Round "5"]
[White "WildTricks"]
[Black "mjray79"]
[Result "0-1"]
[WhiteElo "2498"]
[BlackElo "2370"]
[TimeControl "180+1"]
[EndTime "10:56:51 PDT"]
[Termination "mjray79 won by resignation"]

1. e4 {[%clk 0:03:00.9]} 1... e5 {[%clk 0:03:00.2]} 2. Nf3 {[%clk 0:02:59.6]}
2... Nc6 {[%clk 0:03:00.3]} 3. Bc4 {[%clk 0:02:59.6]} 3... Bc5 {[%clk
0:02:59.5]} 4. O-O {[%clk 0:02:59.7]} 4... Nf6 {[%clk 0:02:59.2]} 5. d4 {[%clk
0:03:00.1]} 5... Bxd4 {[%clk 0:02:56.5]} 6. Nxd4 {[%clk 0:02:59.9]} 6... Nxd4
{[%clk 0:02:57.3]} 7. Bg5 {[%clk 0:03:00.2]} 7... d6 {[%clk 0:02:55.2]} 8. f4
{[%clk 0:02:59.9]} 8... Be6 {[%clk 0:02:54.5]} 9. Bd3 {[%clk 0:02:59.5]} 9...
Qe7 {[%clk 0:02:40.7]} 10. Kh1 {[%clk 0:02:58.3]} 10... O-O-O {[%clk 0:02:39.8]}
11. f5 {[%clk 0:02:57.9]} 11... Bd7 {[%clk 0:02:37.8]} 12. Nc3 {[%clk
0:02:56.9]} 12... Bc6 {[%clk 0:02:32.5]} 13. b3 {[%clk 0:02:56.4]} 13... h6
{[%clk 0:02:24.6]} 14. Bh4 {[%clk 0:02:55.4]} 14... d5 {[%clk 0:02:08.7]} 15.
exd5 {[%clk 0:02:07.7]} 15... Bxd5 {[%clk 0:02:09.6]} 16. Nxd5 {[%clk
0:01:55.9]} 16... Rxd5 {[%clk 0:02:10.5]} 17. Qe1 {[%clk 0:01:56.4]} 17... Re8
{[%clk 0:01:56.9]} 18. Qg3 {[%clk 0:01:47.9]} 18... e4 {[%clk 0:01:28.9]} 19.
Qxg7 {[%clk 0:01:34.5]} 19... Nxf5 {[%clk 0:01:07.7]} 20. Qxf6 {[%clk
0:01:10.8]} 20... Nxh4 {[%clk 0:01:07.7]} 21. Bc4 {[%clk 0:00:54.1]} 21... Rd2
{[%clk 0:00:54.3]} 22. Bxf7 {[%clk 0:00:30]} 22... Qxf6 {[%clk 0:00:44.5]} 23.
Rxf6 {[%clk 0:00:30.9]} 23... Red8 {[%clk 0:00:32.3]} 24. Be6+ {[%clk
0:00:27.3]} 24... Kb8 {[%clk 0:00:31.4]} 25. Rg1 {[%clk 0:00:17.2]} 25... Rxc2
{[%clk 0:00:28.4]} 26. Rf4 {[%clk 0:00:16.9]} 26... Ng6 {[%clk 0:00:22.5]} 27.
Rxe4 {[%clk 0:00:17.1]} 27... Rxa2 {[%clk 0:00:21]} 28. h4 {[%clk 0:00:16.1]}
28... b6 {[%clk 0:00:20.7]} 29. h5 {[%clk 0:00:16.1]} 29... Ne7 {[%clk
0:00:21.2]} 30. Bc4 {[%clk 0:00:13.1]} 30... Nc6 {[%clk 0:00:20.2]} 31. Re6
{[%clk 0:00:13.2]} 31... Rd6 {[%clk 0:00:17.3]} 32. Re8+ {[%clk 0:00:13.3]}
32... Kb7 {[%clk 0:00:16.6]} 33. Rf1 {[%clk 0:00:10.6]} 33... Rdd2 {[%clk
0:00:14.1]} 34. Rg8 {[%clk 0:00:10.3]} 34... Ne5 {[%clk 0:00:12.9]} 35. Be6
{[%clk 0:00:08.9]} 35... Nd3 {[%clk 0:00:10.8]} 36. Rff8 {[%clk 0:00:08.6]}
36... Nf2+ {[%clk 0:00:06.7]} 37. Kh2 {[%clk 0:00:08.5]} 37... Ne4 {[%clk
0:00:05.7]} 38. Rb8+ {[%clk 0:00:08.4]} 38... Kc6 {[%clk 0:00:05.8]} 39. Rg6
{[%clk 0:00:08.7]} 39... Ng5 {[%clk 0:00:05.5]} 40. Bh3+ {[%clk 0:00:05.6]}
40... Kb5 {[%clk 0:00:05.5]} 41. Rbg8 {[%clk 0:00:03.4]} 41... Nf3+ {[%clk
0:00:05.4]} 42. Kg3 {[%clk 0:00:02.5]} 42... Ng5 {[%clk 0:00:05.1]} 43. Kh4
{[%clk 0:00:03]} 43... Rd4+ {[%clk 0:00:04.5]} 44. Bg4 {[%clk 0:00:03.1]} 44...
Ne4 {[%clk 0:00:04]} 45. Rxh6 {[%clk 0:00:03.3]} 45... Rxg2 {[%clk 0:00:04.2]}
46. Rhg6 {[%clk 0:00:03.3]} 46... Rh2+ {[%clk 0:00:03.9]} 47. Bh3 {[%clk
0:00:02.5]} 47... Nf2+ {[%clk 0:00:04]} 48. Kg3 {[%clk 0:00:02.9]} 48... Rxh3+
{[%clk 0:00:04.4]} 49. Kxf2 {[%clk 0:00:03.4]} 49... Rxh5 {[%clk 0:00:04.9]} 50.
Rg5+ {[%clk 0:00:04.1]} 50... Rxg5 {[%clk 0:00:04.6]} 51. Rxg5+ {[%clk 0:00:05]}
51... Kb4 {[%clk 0:00:05.1]} 52. Ke3 {[%clk 0:00:05.6]} 52... Rd6 {[%clk
0:00:04.3]} 53. Rg7 {[%clk 0:00:05.7]} 53... Rc6 {[%clk 0:00:03.6]} 54. Kd4
{[%clk 0:00:06.2]} 54... Kxb3 {[%clk 0:00:03.7]} 55. Rg1 {[%clk 0:00:05.9]}
55... Rd6+ {[%clk 0:00:02.3]} 56. Ke3 {[%clk 0:00:05.4]} 56... Kc4 {[%clk
0:00:03.2]} 57. Rc1+ {[%clk 0:00:05]} 57... Kb5 {[%clk 0:00:03.8]} 58. Rxc7
{[%clk 0:00:05.5]} 58... a5 {[%clk 0:00:04.3]} 59. Rc1 {[%clk 0:00:06]} 59... a4
{[%clk 0:00:04.8]} 60. Rb1+ {[%clk 0:00:05.3]} 60... Ka5 {[%clk 0:00:04.9]} 61.
Rc1 {[%clk 0:00:05.7]} 61... b5 {[%clk 0:00:05.3]} 62. Rc8 {[%clk 0:00:05.8]}
62... a3 {[%clk 0:00:05.4]} 63. Rb8 {[%clk 0:00:04.8]} 63... Kb4 {[%clk
0:00:05.9]} 64. Ke2 {[%clk 0:00:04.2]} 64... a2 {[%clk 0:00:06.1]} 65. Rh8
{[%clk 0:00:04.7]} 65... a1=Q {[%clk 0:00:05.4]} 66. Rh4+ {[%clk 0:00:05.6]}
66... Ka3 {[%clk 0:00:05]} 67. Rh3+ {[%clk 0:00:05.7]} 67... Ka2 {[%clk
0:00:05.4]} 0-1

[Event "*** SCC Grand Prix: Titled Tuesday Blitz"]
[Site "Chess.com"]
[Date "2020.07.21"]
[Round "5"]
[White "warmoatmeal"]
[Black "lelya96"]
[Result "1-0"]
[WhiteElo "2360"]
[BlackElo "2176"]
[TimeControl "180+1"]
[EndTime "10:56:51 PDT"]
[Termination "warmoatmeal won by checkmate"]

1. Nf3 {[%clk 0:03:00.9]} 1... d5 {[%clk 0:02:59.3]} 2. e3 {[%clk 0:03:00]} 2...
Nf6 {[%clk 0:02:56.6]} 3. c4 {[%clk 0:02:56.9]} 3... c6 {[%clk 0:02:55.7]} 4. b3
{[%clk 0:02:54.6]} 4... Bg4 {[%clk 0:02:54.8]} 5. Be2 {[%clk 0:02:54.3]} 5... e6
{[%clk 0:02:54.2]} 6. Bb2 {[%clk 0:02:53.8]} 6... Be7 {[%clk 0:02:54.1]} 7. h3
{[%clk 0:02:53.9]} 7... Bh5 {[%clk 0:02:53.3]} 8. O-O {[%clk 0:02:53.6]} 8...
O-O {[%clk 0:02:52.5]} 9. Ne5 {[%clk 0:02:52.8]} 9... Bxe2 {[%clk 0:02:51.3]}
10. Qxe2 {[%clk 0:02:53.7]} 10... Nbd7 {[%clk 0:02:51.4]} 11. d3 {[%clk
0:02:53.2]} 11... Nxe5 {[%clk 0:02:51]} 12. Bxe5 {[%clk 0:02:54.1]} 12... Nd7
{[%clk 0:02:51.4]} 13. Bb2 {[%clk 0:02:53.4]} 13... Bf6 {[%clk 0:02:51.9]} 14.
Bxf6 {[%clk 0:02:51.7]} 14... Qxf6 {[%clk 0:02:52.8]} 15. d4 {[%clk 0:02:51.9]}
15... e5 {[%clk 0:02:47.6]} 16. dxe5 {[%clk 0:02:51.6]} 16... Qxe5 {[%clk
0:02:41.7]} 17. Nd2 {[%clk 0:02:50.9]} 17... Nf6 {[%clk 0:02:40.2]} 18. Nf3
{[%clk 0:02:49.5]} 18... Qe4 {[%clk 0:02:38.2]} 19. Rfd1 {[%clk 0:02:45.6]}
19... h6 {[%clk 0:02:33.6]} 20. Rd4 {[%clk 0:02:43.8]} 20... Qe6 {[%clk
0:02:31.8]} 21. Rad1 {[%clk 0:02:41.4]} 21... a5 {[%clk 0:02:27.6]} 22. cxd5
{[%clk 0:02:40]} 22... Nxd5 {[%clk 0:02:26.9]} 23. Qc4 {[%clk 0:02:34.6]} 23...
Qf6 {[%clk 0:01:56]} 24. Qc5 {[%clk 0:02:18.3]} 24... Rfe8 {[%clk 0:01:44.9]}
25. a4 {[%clk 0:02:00.1]} 25... Qe6 {[%clk 0:01:34.1]} 26. Nd2 {[%clk
0:01:43.2]} 26... b6 {[%clk 0:00:52.7]} 27. Qc4 {[%clk 0:01:31.3]} 27... Nb4
{[%clk 0:00:33.5]} 28. Qxe6 {[%clk 0:01:24.5]} 28... Rxe6 {[%clk 0:00:34.4]} 29.
Nc4 {[%clk 0:01:19.3]} 29... b5 {[%clk 0:00:33.9]} 30. Rd8+ {[%clk 0:01:19.1]}
30... Rxd8 {[%clk 0:00:29.2]} 31. Rxd8+ {[%clk 0:01:20]} 31... Kh7 {[%clk
0:00:29.1]} 32. Nxa5 {[%clk 0:01:18.9]} 32... bxa4 {[%clk 0:00:28]} 33. bxa4
{[%clk 0:01:19.8]} 33... Re5 {[%clk 0:00:27.3]} 34. Rd4 {[%clk 0:01:00.6]} 34...
Nc2 {[%clk 0:00:25.5]} 35. Nxc6 {[%clk 0:00:56.6]} 35... Rc5 {[%clk 0:00:22.7]}
36. Rd6 {[%clk 0:00:52.3]} 36... Na3 {[%clk 0:00:20.6]} 37. Nd8 {[%clk
0:00:42.2]} 37... f6 {[%clk 0:00:18.8]} 38. Rd7 {[%clk 0:00:36.2]} 38... Re5
{[%clk 0:00:15.7]} 39. Nc6 {[%clk 0:00:32.8]} 39... Rc5 {[%clk 0:00:15.2]} 40.
Nd4 {[%clk 0:00:30.5]} 40... Nc4 {[%clk 0:00:14.5]} 41. Rxg7+ {[%clk 0:00:28.9]}
41... Kxg7 {[%clk 0:00:13.7]} 42. Ne6+ {[%clk 0:00:29.4]} 42... Kg6 {[%clk
0:00:14.5]} 43. Nxc5 {[%clk 0:00:30.3]} 43... Na5 {[%clk 0:00:14.8]} 44. e4
{[%clk 0:00:29.2]} 44... Kf7 {[%clk 0:00:14.8]} 45. f4 {[%clk 0:00:29.4]} 45...
Ke7 {[%clk 0:00:15.7]} 46. e5 {[%clk 0:00:28.9]} 46... fxe5 {[%clk 0:00:14.9]}
47. fxe5 {[%clk 0:00:29.8]} 47... Nc6 {[%clk 0:00:14.7]} 48. Kf2 {[%clk
0:00:19.7]} 48... Nxe5 {[%clk 0:00:14.4]} 49. a5 {[%clk 0:00:19.9]} 49... Kd6
{[%clk 0:00:12.7]} 50. Ne4+ {[%clk 0:00:18.4]} 50... Kd5 {[%clk 0:00:12.4]} 51.
Nf6+ {[%clk 0:00:18.1]} 51... Ke6 {[%clk 0:00:12.6]} 52. Ng4 {[%clk 0:00:17.1]}
52... Nc4 {[%clk 0:00:11.2]} 53. a6 {[%clk 0:00:16.6]} 53... h5 {[%clk
0:00:11.2]} 54. Ne3 {[%clk 0:00:16.1]} 54... Nb6 {[%clk 0:00:10.7]} 55. Kg3
{[%clk 0:00:15.3]} 55... Ke5 {[%clk 0:00:10.2]} 56. Kh4 {[%clk 0:00:15.4]} 56...
Kf4 {[%clk 0:00:10.2]} 57. Kxh5 {[%clk 0:00:14.9]} 57... Kxe3 {[%clk 0:00:10.2]}
58. g4 {[%clk 0:00:15.5]} 58... Kf4 {[%clk 0:00:10.4]} 59. g5 {[%clk 0:00:15.8]}
59... Kf5 {[%clk 0:00:10.7]} 60. g6 {[%clk 0:00:16.1]} 60... Nd7 {[%clk
0:00:11.1]} 61. a7 {[%clk 0:00:15.6]} 61... Nf6+ {[%clk 0:00:09]} 62. Kh6 {[%clk
0:00:15.9]} 62... Ng8+ {[%clk 0:00:08.3]} 63. Kg7 {[%clk 0:00:15.9]} 63... Ne7
{[%clk 0:00:08.5]} 64. a8=Q {[%clk 0:00:15.6]} 64... Nxg6 {[%clk 0:00:09.4]} 65.
Qf3+ {[%clk 0:00:14.4]} 65... Nf4 {[%clk 0:00:09.4]} 66. Qg4+ {[%clk 0:00:13.8]}
66... Ke5 {[%clk 0:00:09.6]} 67. h4 {[%clk 0:00:11.5]} 67... Ne6+ {[%clk
0:00:10.5]} 68. Qxe6+ {[%clk 0:00:11.2]} 68... Kxe6 {[%clk 0:00:10.4]} 69. h5
{[%clk 0:00:12.1]} 69... Kf5 {[%clk 0:00:11]} 70. h6 {[%clk 0:00:13]} 70... Kg5
{[%clk 0:00:11.9]} 71. h7 {[%clk 0:00:13.9]} 71... Kf5 {[%clk 0:00:12.8]} 72.
h8=Q {[%clk 0:00:14.8]} 72... Kg5 {[%clk 0:00:13.7]} 73. Qh6+ {[%clk 0:00:14.8]}
73... Kg4 {[%clk 0:00:14.1]} 74. Qf6 {[%clk 0:00:14.2]} 74... Kg3 {[%clk
0:00:13.3]} 75. Qf5 {[%clk 0:00:13.5]} 75... Kh4 {[%clk 0:00:13.6]} 76. Qg6
{[%clk 0:00:13.6]} 76... Kh3 {[%clk 0:00:13.7]} 77. Kf6 {[%clk 0:00:14.5]} 77...
Kh2 {[%clk 0:00:14.2]} 78. Kf5 {[%clk 0:00:15.4]} 78... Kh3 {[%clk 0:00:15.1]}
79. Kf4 {[%clk 0:00:16.3]} 79... Kh2 {[%clk 0:00:15.1]} 80. Kf3 {[%clk
0:00:16.5]} 80... Kh1 {[%clk 0:00:15.7]} 81. Qg2# {[%clk 0:00:16.4]} 1-0